[Event "EYCC O18-ch 2024"]
[Site "Prague"]
[Date "2024.08.22"]
[Round "1.1"]
[White "Sokolovsky, Yahli"]
[Black "Torres Rebolledo, Victor"]
[Result "1-0"]
[ECO "B10"]
[WhiteElo "2522"]
[BlackElo "2184"]
[Annotator "TA"]
[PlyCount "49"]
[EventDate "2024.08.19"]
[EventType "swiss"]
[EventCountry "CZE"]
[SourceTitle "playchess.com"]
[Source "ChessBase"]
[SourceQuality "1"]
[TimeControl "5400+30"]

{[%evp 9,49,31,35,27,37,28,63,56,60,62,74,65,77,64,87,84,84,89,97,103,163,141,256,243,263,262,258,225,224,216,216,200,260,259,286,275,303,298,297,303,306,302]} 1. e4 {[%emt 0:00:04]} c6 {[%emt 0:00:16]} 2. Nf3 {[%emt 0:00:06]} d5 {[%emt 0:00:07]} 3. Nc3 {[%emt 0:00:06]} dxe4 {[%emt 0:00:17]} 4. Nxe4 {[%emt 0:00:05]} Nf6 {[%emt 0:00:06]} 5. Qe2 {[%emt 0:00:07]} Na6 {[%emt 0:00:20]} 6. a3 {[%emt 0:00:06]} Bf5 {[%emt 0:11:23]} 7. d3 {[%emt 0:01:00]} h6 {[%emt 0:17:03]} 8. Nxf6+ {[%emt 0:01:32] White is slightly better.} gxf6 {[%emt 0:00:09]} 9. g3 {[%emt 0:02:55]} Qd7 {[%emt 0:03:24]} 10. Be3 {[%emt 0:12:26]} Nc7 {[%emt 0:03:10] White leaves nothing to chance now.} 11. Nh4 {[%emt 0:05:59]} Bh3 {[%emt 0:04:46]} 12. Bxh3 {[%emt 0:02:17]} Qxh3 {[%emt 0:00:03]} 13. O-O-O {[%emt 0:01:54]} Qe6 {[%emt 0:08:19]} 14. c4 {[%emt 0:00:54] White is more active.} O-O-O {[%emt 0:08:05]} (14... Qd7 $16 {might work better.} 15. Rhe1 h5) 15. Rhe1 {[%emt 0:06:18][%cal Oe2h5]} Kb8 {[%emt 0:05:34] [#]} (15... h5 $16 16. Bxa7 Qxe2 17. Rxe2 b5) 16. Qh5 $1 $18 {[%emt 0:00:55][%cal Oe3a7] Black must now prevent Bxa7+!} Qd7 {[%emt 0:01:53]} 17. Qxf7 {[%emt 0:01:28] Threatens to win with Ng6.} Qe8 {[%emt 0:01:06]} 18. Qxe8 {[%emt 0:00:13]} Rxe8 {[%emt 0:00:27]} 19. d4 {[%emt 0:08:47]} e6 {[%emt 0:05:13]} 20. Ng6 {[%emt 0:06:08]} Rh7 {[%emt 0:00:09] Black is weak on the dark squares} 21. Bf4 {[%emt 0:03:17][%cal Oe1e6] Strongly threatening Rxe6! White has a decisive advantage.} Kc8 {[%emt 0:01:29]} 22. Bxc7 {[%emt 0:00:36]} Kxc7 {[%emt 0:00:10]} 23. Nxf8 {[%emt 0:03:15]} Rxf8 {[%emt 0:00:02]} 24. Rxe6 {[%emt 0:00:07]} Rd7 {[%emt 0:00:23]} 25. Kc2 {[%emt 0:00:12] Weighted Error Value: White=0.07 (flawless) /Black=0.21 (precise) .  Mistake:       	---       	Black=2      Inaccurate:     	---       	Black=1      OK:         	White=8     	Black=2      Best:        	---       	Black=1      Strong:       	White=1     	---} 1-0

[Event "EYCC O18-ch 2024"]
[Site "Prague"]
[Date "2024.08.22"]
[Round "1.1"]
[White "Piliposyan, Robert"]
[Black "Asllani, Dorian"]
[Result "1-0"]
[ECO "D37"]
[WhiteElo "2376"]
[BlackElo "2061"]
[Annotator "RC"]
[PlyCount "75"]
[EventDate "2024.08.19"]
[EventType "swiss"]
[EventCountry "CZE"]
[SourceTitle "playchess.com"]
[Source "ChessBase"]
[SourceQuality "1"]
[TimeControl "5400+30"]

1. d4 {[%emt 0:00:16]} d5 {[%emt 0:00:09]} 2. c4 {[%emt 0:00:06]} e6 {[%emt 0:00:04]} 3. Nf3 {[%emt 0:00:04]} Nf6 {[%emt 0:00:07]} 4. Nc3 {[%emt 0:00:05]} Ne4 {[%emt 0:00:07]} 5. e3 {[%emt 0:02:24]} Bb4 {[%emt 0:04:27]} 6. Qa4+ {[%emt 0:00:47]} Nc6 {[%emt 0:00:08]} 7. Qc2 {[%emt 0:00:05]} O-O {[%emt 0:03:45]} 8. Bd3 {[%emt 0:02:45]} b6 {[%emt 0:08:55]} 9. cxd5 {[%emt 0:07:17]} exd5 {[%emt 0:14:42]} 10. O-O {[%emt 0:00:59]} Bxc3 {[%emt 0:05:28]} 11. bxc3 {[%emt 0:00:26]} Re8 {[%emt 0:06:38]} 12. Nd2 {[%emt 0:29:52]} Bf5 {[%emt 0:15:11]} 13. Nxe4 {[%emt 0:02:43]} dxe4 {[%emt 0:08:30]} 14. Bb5 {[%emt 0:04:51]} Bd7 {[%emt 0:11:45]} 15. a4 {[%emt 0:12:37]} Na5 {[%emt 0:08:00]} 16. Be2 {[%emt 0:02:36]} Qg5 {[%emt 0:01:43]} 17. f4 {[%emt 0:00:45]} Qg6 {[%emt 0:01:04]} 18. c4 {[%emt 0:01:56]} Nc6 {[%emt 0:01:02]} 19. Ba3 {[%emt 0:04:35]} Rad8 {[%emt 0:02:28]} 20. Kh1 {[%emt 0:08:12]} a5 {[%emt 0:02:23]} 21. Qd1 {[%emt 0:04:03]} Ne7 {[%emt 0:03:10]} 22. g4 {[%emt 0:03:13]} Kh8 {[%emt 0:00:24]} 23. d5 {[%emt 0:03:50]} Ng8 {[%emt 0:00:30]} 24. Bb2 {[%emt 0:00:34]} c6 {[%emt 0:00:45]} 25. Be5 {[%emt 0:04:13]} cxd5 {[%emt 0:00:40]} 26. cxd5 {[%emt 0:00:04]} Bc8 {[%emt 0:00:20]} 27. f5 {[%emt 0:01:15]} Qh6 {[%emt 0:00:22]} 28. Qd4 Rxe5 {[%emt 0:00:36]} 29. Qxe5 {[%emt 0:01:38]} Qxe3 {[%emt 0:00:06]} 30. Rae1 {[%emt 0:00:54]} Nf6 {[%emt 0:00:10]} 31. Qc7 {[%emt 0:00:41]} Rg8 {[%emt 0:00:20]} 32. Ba6 {[%emt 0:00:52]} Nxd5 {[%emt 0:01:23]} 33. Rxe3 {[%emt 0:00:07]} Bxa6 {[%emt 0:00:29]} 34. Qxf7 {[%emt 0:00:52]} Nxe3 {[%emt 0:00:09]} 35. Rg1 {[%emt 0:01:14]} Bc4 {[%emt 0:01:11]} 36. Qe7 {[%emt 0:00:11]} h5 {[%emt 0:00:46]} 37. Qg5 {[%emt 0:00:18]} Nxg4 {[%emt 0:00:10]} 38. Rxg4 {[%emt 0:00:05]} 1-0

[Event "EYCC O18-ch 2024"]
[Site "Prague"]
[Date "2024.08.22"]
[Round "1.2"]
[White "Ribeiro, Gustavo"]
[Black "Klimkowski, Jan"]
[Result "0-1"]
[ECO "C47"]
[WhiteElo "2183"]
[BlackElo "2508"]
[Annotator "TA"]
[PlyCount "50"]
[EventDate "2024.08.19"]
[EventType "swiss"]
[EventCountry "CZE"]
[SourceTitle "playchess.com"]
[Source "ChessBase"]
[SourceQuality "1"]
[TimeControl "5400+30"]

{[%evp 10,50,-1,-6,0,-15,0,0,3,-8,0,-30,-21,-43,-33,-69,-85,-65,-49,-114,-118,-159,-154,-170,-152,-167,-166,-193,-135,-264,-281,-459,-405,-398,-406,-680,-681,-663,-675,-676,-685,-864,-820]} 1. e4 {[%emt 0:00:02]} e5 {[%emt 0:00:06]} 2. Nf3 {[%emt 0:00:03]} Nc6 {[%emt 0:00:04]} 3. Nc3 {[%emt 0:00:04]} Nf6 {[%emt 0:00:06]} 4. d4 {[%emt 0:00:05]} Bb4 {[%emt 0:00:06]} 5. d5 {[%emt 0:03:16]} Ne7 {[%emt 0:00:27]} 6. Bd3 {[%emt 0:06:59]} d6 {[%emt 0:00:55]} 7. O-O {[%emt 0:02:07]} Bxc3 {[%emt 0:03:56]} 8. bxc3 {[%emt 0:00:48]} Ng6 {[%emt 0:07:13] The position is equal.} 9. h3 {[%emt 0:05:40]} O-O {[%emt 0:01:07]} 10. Nh2 {[%emt 0:01:54]} Nd7 {[%emt 0:04:51]} 11. Qf3 {[%emt 0:04:13]} Nc5 {[%emt 0:02:23]} 12. g4 {[%emt 0:02:20]} c6 {[%emt 0:02:59] ...cxd5 would now be deadly.} 13. c4 {[%emt 0:05:10]} Bd7 {[%emt 0:02:40]} 14. Qg3 {[%emt 0:03:58] [#]} (14. Be3 $15) 14... b5 $1 $17 {[%emt 0:04:43]} 15. cxb5 {[%emt 0:02:25]} cxd5 {[%emt 0:06:38]} (15... cxb5 16. a3 $15) 16. exd5 {[%emt 0:00:50]} Nxd3 {[%emt 0:00:06]} 17. Qxd3 {[%emt 0:00:12]} f5 {[%emt 0:00:05]} 18. Re1 {[%emt 0:19:21]} e4 {[%emt 0:06:36]} ({Better is} 18... Rc8 $19 {...fxg4 is the strong threat.} 19. Bd2 Qh4) 19. Qg3 {[%emt 0:03:49]} (19. Qa3 $17) 19... f4 $19 {[%emt 0:11:38]} (19... Bxb5 20. gxf5 Rxf5 21. Rxe4 $17) 20. Qc3 {[%emt 0:04:09]} (20. Qg2 Qf6 (20... Bxb5 21. Qxe4 Qh4 22. Qg2 $15) 21. Rb1) 20... e3 {[%emt 0:03:19]} (20... Bxb5 21. Bb2 (21. Rxe4 f3 $11) 21... Ne5 (21... Qe7 22. Rxe4 Qf7 23. Nf3 $16) 22. Rxe4 $11) 21. Bb2 {[%emt 0:15:24][%csl Gb2][%cal Rc3g7] [#]} Ne5 {[%emt 0:01:44] Active counter play!} ({Weaker is} 21... Bxb5 22. Qxg7#) 22. f3 {[%emt 0:01:31]} (22. fxe3 $142 f3 (22... Bxb5 23. exf4 Qb6+ 24. Qd4 $14) 23. Rf1) 22... Qh4 {[%emt 0:01:42] Black is clearly winning.} 23. Re2 {[%emt 0:00:55]} Qxh3 {[%emt 0:02:38][%cal Of8f7]} 24. Rg2 {[%emt 0:00:55]} Rf7 {[%emt 0:01:15]} 25. Qb4 {[%emt 0:00:53]} Ng6 {[%emt 0:04:30] Weighted Error Value: White=0.64/Black=0.07 (flawless) .  Mistake:       	White=4     	Black=1      Inaccurate:     	White=3     	---        OK:         	White=4     	Black=7      Best:        	---       	Black=2      Strong:       	---       	Black=1} 0-1

[Event "EYCC O18-ch 2024"]
[Site "Prague"]
[Date "2024.08.22"]
[Round "1.2"]
[White "Thorisson, Benedikt"]
[Black "Chyzy, Jakub"]
[Result "0-1"]
[ECO "C55"]
[WhiteElo "2057"]
[BlackElo "2368"]
[Annotator "RC"]
[PlyCount "78"]
[EventDate "2024.08.19"]
[EventType "swiss"]
[EventCountry "CZE"]
[SourceTitle "playchess.com"]
[Source "ChessBase"]
[SourceQuality "1"]
[TimeControl "5400+30"]

1. e4 {[%emt 0:00:12]} e5 {[%emt 0:00:03]} 2. Nf3 {[%emt 0:00:07]} Nc6 {[%emt 0:00:04]} 3. Bc4 {[%emt 0:00:11]} Nf6 {[%emt 0:00:13]} 4. d3 {[%emt 0:00:07]} h6 {[%emt 0:00:05]} 5. Nbd2 {[%emt 0:01:01]} g6 {[%emt 0:01:13]} 6. c3 {[%emt 0:02:43]} Bg7 {[%emt 0:03:57]} 7. O-O {[%emt 0:00:45]} O-O {[%emt 0:00:29]} 8. Re1 {[%emt 0:01:15]} d6 {[%emt 0:09:48]} 9. Nf1 {[%emt 0:05:26]} Na5 {[%emt 0:00:11]} 10. Bb5 {[%emt 0:00:25]} a6 {[%emt 0:00:02]} 11. Ba4 {[%emt 0:00:07]} b5 {[%emt 0:00:06]} 12. Bc2 {[%emt 0:00:05]} c5 {[%emt 0:00:05]} 13. Bd2 {[%emt 0:02:51]} Nc6 {[%emt 0:02:05]} 14. h3 {[%emt 0:03:33]} d5 {[%emt 0:05:44]} 15. a4 {[%emt 0:08:23]} Be6 {[%emt 0:03:23]} 16. b4 {[%emt 0:19:57]} cxb4 {[%emt 0:01:46]} 17. cxb4 {[%emt 0:01:42]} Qd6 {[%emt 0:02:11]} 18. Qc1 {[%emt 0:00:47]} Kh7 {[%emt 0:06:49]} 19. Qb2 {[%emt 0:01:31]} Nd7 {[%emt 0:00:47]} 20. Bc3 {[%emt 0:04:16]} d4 {[%emt 0:01:13]} 21. Bd2 {[%emt 0:00:06]} f5 {[%emt 0:01:46]} 22. Bb3 {[%emt 0:02:10]} fxe4 {[%emt 0:04:55]} 23. dxe4 {[%emt 0:00:25]} Nb6 {[%emt 0:01:01]} 24. Bxe6 {[%emt 0:04:14]} Qxe6 {[%emt 0:00:11]} 25. Rec1 {[%emt 0:00:58]} Nxa4 {[%emt 0:02:07]} 26. Qc2 {[%emt 0:04:38]} Rfc8 {[%emt 0:00:51]} 27. Qd1 {[%emt 0:01:34]} Nd8 {[%emt 0:06:05]} 28. Ne1 {[%emt 0:03:51]} Rxc1 {[%emt 0:01:25]} 29. Rxc1 {[%emt 0:01:13]} Rc8 {[%emt 0:00:09]} 30. Nd3 {[%emt 0:00:56]} Rxc1 {[%emt 0:00:28]} 31. Qxc1 {[%emt 0:00:49]} Qc4 {[%emt 0:00:17]} 32. Qa3 {[%emt 0:00:53]} Nc6 {[%emt 0:01:08]} 33. f3 {[%emt 0:10:04]} Bf8 {[%emt 0:01:20]} 34. Be1 {[%emt 0:01:15]} a5 {[%emt 0:00:43]} 35. Qc1 {[%emt 0:00:46]} Qxc1 {[%emt 0:01:09]} 36. Nxc1 {[%emt 0:00:04]} Bxb4 {[%emt 0:00:31]} 37. Bxb4 {[%emt 0:00:48]} Nxb4 {[%emt 0:00:09]} 38. Nb3 {[%emt 0:00:07]} Nc6 {[%emt 0:00:11]} 39. Nfd2 {[%emt 0:00:33]} Nc3 {[%emt 0:00:20]} 0-1

[Event "EYCC O18-ch 2024"]
[Site "Prague"]
[Date "2024.08.22"]
[Round "1.3"]
[White "Malek, Jan"]
[Black "Bermudez Ureba, Juan Diego"]
[Result "1-0"]
[ECO "E12"]
[WhiteElo "2482"]
[BlackElo "2183"]
[Annotator "TA"]
[PlyCount "49"]
[EventDate "2024.08.19"]
[EventType "swiss"]
[EventCountry "CZE"]
[SourceTitle "playchess.com"]
[Source "ChessBase"]
[SourceQuality "1"]
[TimeControl "5400+30"]

{[%evp 9,49,2,7,3,39,20,31,15,20,13,76,77,148,135,141,145,134,140,155,133,129,115,163,159,193,191,219,166,161,156,154,158,148,152,304,300,309,305,515,509,498,494]} 1. d4 {[%emt 0:00:02]} Nf6 {[%emt 0:00:07]} 2. c4 {[%emt 0:00:04]} e6 {[%emt 0:00:04]} 3. Nf3 {[%emt 0:00:05]} b6 {[%emt 0:02:27]} 4. a3 {[%emt 0:00:06]} d5 {[%emt 0:03:15]} 5. cxd5 {[%emt 0:00:40]} exd5 {[%emt 0:00:08]} 6. Nc3 {[%emt 0:00:23]} a6 {[%emt 0:05:07]} 7. Bf4 {[%emt 0:09:19]} Bd6 {[%emt 0:09:50]} 8. Be5 {[%emt 0:00:14] White is slightly better.} Bb7 {[%emt 0:03:40]} 9. Qa4+ {[%emt 0:05:02]} c6 {[%emt 0:12:02] [#]} (9... b5 $11 10. Qc2 O-O) 10. Bxf6 $1 $16 {[%emt 0:01:44]} gxf6 {[%emt 0:01:11]} ({Black should try} 10... Qxf6 11. Nxd5 Qd8) 11. e3 {[%emt 0:03:35]} (11. Nxd5 $2 b5 12. Qd1 cxd5 $19) 11... Nd7 {[%emt 0:05:41]} 12. Bd3 {[%emt 0:04:02]} Nf8 {[%emt 0:01:56]} 13. Nh4 {[%emt 0:08:52]} (13. Nxd5 b5 14. Nxf6+ Qxf6 $17) 13... Ne6 {[%emt 0:03:31]} 14. Nf5 {[%emt 0:01:07]} (14. Nxd5 b5 15. Qd1 cxd5 $17) 14... Bc7 {[%emt 0:00:04]} 15. O-O {[%emt 0:02:00]} Qd7 {[%emt 0:00:37]} (15... h5 $16 {was worth a try.} 16. Rae1 h4) 16. Rac1 $18 {[%emt 0:09:05]} c5 {[%emt 0:06:31]} 17. dxc5 {[%emt 0:01:16]} bxc5 {[%emt 0:01:13]} 18. Qh4 {[%emt 0:02:11][%cal Od3c2] aiming for Bc2!} O-O-O {[%emt 0:10:47]} 19. Rfd1 {[%emt 0:00:51][%cal Od3c2] Black must now prevent Bc2!} Rhg8 {[%emt 0:12:23]} 20. Qxf6 {[%emt 0:12:07][%cal Od3e4] [#] Hoping for Be4!} Kb8 {[%emt 0:04:30]} 21. Ne7 {[%emt 0:01:09] Repels Rg6. Excellent horsemanship.} Qd6 $2 {[%emt 0:06:04]} (21... d4 $16 {keeps fighting.} 22. Nxg8 (22. Qxf7 $2 Rxg2+ 23. Kf1 dxc3 $19) 22... Qd6) 22. g3 {[%emt 0:02:18] Active counter play!} (22. Qxf7 $2 Qxh2+ 23. Kf1 Qxg2+ (23... Rxg2 $2 24. Qf3 $19) 24. Ke1 Rdf8 $19) 22... Rg5 {[%emt 0:00:32]} 23. Be4 {[%emt 0:02:36]} (23. Qxf7 $2 Rg7 $19) (23. Bxh7 Qe5 24. Ncxd5 (24. Qxf7 $2 Rf8 $19) 24... Bxd5 25. Nxd5 (25. Qxf7 Rg7 $17) (25. Qxe5 Rxe5 26. Nxd5 Rexd5 $11) 25... Rxd5 26. Qxf7 Ka7 27. Rxd5 Qxd5 $16) 23... Nf4 {[%emt 0:07:12]} (23... Qe5 24. Qxe5 (24. Ncxd5 $2 {perishes.} Qxe4 25. f3 Qh4 $19) (24. Nexd5 Rxd5 25. Qxe5 Rxd1+ 26. Rxd1 Rxe5 $15) 24... Bxe5) 24. Qxd6 {[%emt 0:00:08]} (24. Qxg5 $2 {too greedy.} Nh3+ 25. Kf1 Nxg5 $19) (24. Qxf4 $2 {is the wrong capture.} Qxe7 25. Qh4 dxe4 $19) 24... Bxd6 {[%emt 0:00:19]} 25. exf4 {[%emt 0:00:40] Black did not feel at home in the position after the opening.   Weighted Error Value: White=0.08 (flawless) /Black=0.49.  Mistake:       	---       	Black=5      Inaccurate:     	---       	Black=1      OK:         	White=6     	Black=5      Best:        	White=3     	Black=1      Strong:       	White=1     	---} 1-0

[Event "EYCC O18-ch 2024"]
[Site "Prague"]
[Date "2024.08.22"]
[Round "1.3"]
[White "Karolczuk, Iwo"]
[Black "Dogias, Christos"]
[Result "1/2-1/2"]
[ECO "B46"]
[WhiteElo "2356"]
[BlackElo "2047"]
[Annotator "RC"]
[PlyCount "95"]
[EventDate "2024.08.19"]
[EventType "swiss"]
[EventCountry "CZE"]
[SourceTitle "playchess.com"]
[Source "ChessBase"]
[SourceQuality "1"]
[TimeControl "5400+30"]

1. e4 {[%emt 0:00:02]} c5 {[%emt 0:00:22]} 2. Nf3 {[%emt 0:00:25]} e6 {[%emt 0:00:04]} 3. d4 {[%emt 0:00:24]} cxd4 {[%emt 0:00:07]} 4. Nxd4 {[%emt 0:00:06]} Nc6 {[%emt 0:00:12]} 5. Nc3 {[%emt 0:00:18]} a6 {[%emt 0:00:06]} 6. a3 {[%emt 0:00:18]} Qc7 {[%emt 0:01:30]} 7. Be3 {[%emt 0:00:35]} b5 {[%emt 0:00:10]} 8. Nxc6 {[%emt 0:00:11]} Qxc6 {[%emt 0:00:11]} 9. Be2 {[%emt 0:00:17]} Bb7 {[%emt 0:00:22]} 10. O-O {[%emt 0:00:13]} Rc8 {[%emt 0:02:38]} 11. Qd3 {[%emt 0:01:19]} Qc7 {[%emt 0:02:32]} 12. Rfd1 {[%emt 0:02:43]} Nf6 {[%emt 0:03:35]} 13. Bf3 {[%emt 0:01:20]} h6 {[%emt 0:07:15]} 14. Rd2 {[%emt 0:01:50]} d6 {[%emt 0:11:05]} 15. a4 {[%emt 0:15:42]} b4 {[%emt 0:03:27]} 16. Na2 {[%emt 0:00:16]} d5 {[%emt 0:09:05]} 17. exd5 {[%emt 0:00:56]} Nxd5 {[%emt 0:00:08]} 18. Bxd5 {[%emt 0:17:30]} Bxd5 {[%emt 0:00:15]} 19. Qxa6 {[%emt 0:01:39]} Ra8 {[%emt 0:21:18]} 20. Qb5+ {[%emt 0:34:30]} Bc6 {[%emt 0:00:12]} 21. Bf4 {[%emt 0:05:22]} Bxb5 {[%emt 0:05:37]} 22. Bxc7 {[%emt 0:00:18]} Bxa4 {[%emt 0:05:16]} 23. Nc1 {[%emt 0:04:14]} Be7 {[%emt 0:01:50]} 24. b3 {[%emt 0:00:19]} Bc6 {[%emt 0:00:09]} 25. Rxa8+ {[%emt 0:00:04]} Bxa8 {[%emt 0:00:09]} 26. Ba5 {[%emt 0:03:30]} Be4 {[%emt 0:07:05]} 27. f3 {[%emt 0:05:18]} Bg5 {[%emt 0:08:17]} 28. Re2 {[%emt 0:00:49]} Bg6 {[%emt 0:00:48]} 29. Na2 {[%emt 0:01:24]} O-O {[%emt 0:00:06]} 30. Bxb4 {[%emt 0:00:38]} Rc8 {[%emt 0:02:04]} 31. Nc3 {[%emt 0:00:32]} Be7 {[%emt 0:00:08]} 32. Bxe7 {[%emt 0:01:53]} Rxc3 {[%emt 0:00:05]} 33. b4 {[%emt 0:00:09]} Bxc2 {[%emt 0:02:16]} 34. b5 {[%emt 0:00:38]} Bb3 {[%emt 0:00:55]} 35. b6 {[%emt 0:00:49]} Bd5 {[%emt 0:02:47]} 36. Rb2 {[%emt 0:00:23]} Bb7 {[%emt 0:00:04]} 37. Bd6 {[%emt 0:00:15]} f6 {[%emt 0:04:35]} 38. Bc7 {[%emt 0:00:31]} Kf7 {[%emt 0:00:26]} 39. Rd2 {[%emt 0:00:49]} Ke7 {[%emt 0:01:06]} 40. Bd6+ {[%emt 0:00:27]} Ke8 {[%emt 0:00:29]} 41. Bc7 {[%emt 0:00:39]} Rb3 {[%emt 0:00:24]} 42. Rd8+ {[%emt 0:00:38]} Ke7 {[%emt 0:00:11]} 43. Rg8 {[%emt 0:00:24]} Kf7 {[%emt 0:00:21]} 44. Rb8 {[%emt 0:00:54]} Bd5 {[%emt 0:00:06]} 45. Bd6 {[%emt 0:00:17]} g5 {[%emt 0:00:20]} 46. h3 {[%emt 0:00:36]} Rb1+ {[%emt 0:00:32]} 47. Kf2 {[%emt 0:00:24]} Rb2+ {[%emt 0:00:07]} 48. Kg1 {[%emt 0:00:06]} 1/2-1/2

[Event "EYCC O18-ch 2024"]
[Site "Prague"]
[Date "2024.08.22"]
[Round "1.4"]
[White "Bakija, Alan"]
[Black "Rozen, Eytan"]
[Result "0-1"]
[ECO "A37"]
[WhiteElo "2171"]
[BlackElo "2478"]
[Annotator "TA"]
[PlyCount "108"]
[EventDate "2024.08.19"]
[EventType "swiss"]
[EventCountry "CZE"]
[SourceTitle "playchess.com"]
[Source "ChessBase"]
[SourceQuality "1"]
[TimeControl "5400+30"]

{[%evp 14,108,0,1,37,-24,10,-20,0,0,12,31,28,20,20,11,33,27,28,20,20,0,17,24,22,15,44,32,32,11,24,24,35,24,24,24,24,0,24,22,33,32,54,30,33,29,33,31,31,0,16,0,0,0,0,0,0,0,0,0,64,64,64,64,66,78,262,89,97,0,0,0,0,-118,-119,-243,-231,-232,-229,-387,-372,-416,-414,-374,-385,-389,-367,-522,-522,-520,-495,-494,-551,-531,-504,-568,-558]} 1. Nf3 {[%emt 0:00:03]} c5 {[%emt 0:00:41]} 2. c4 {[%emt 0:00:13]} Nc6 {[%emt 0:00:14]} 3. g3 {[%emt 0:00:58]} g6 {[%emt 0:00:05]} 4. Bg2 {[%emt 0:00:04]} Bg7 {[%emt 0:00:04]} 5. Nc3 {[%emt 0:00:12]} d6 {[%emt 0:00:05]} 6. O-O {[%emt 0:00:12]} Bf5 {[%emt 0:01:11]} 7. b3 {[%emt 0:03:26] A37: Symmetrical English vs ...g6: 4 Bg2 Bg7 5 Nf3.} Qd7 {[%emt 0:03:06] 7...Nf6 is vanishing.} 8. Bb2 {[%emt 0:03:17]} Bh3 {[%emt 0:01:11]} 9. Qc2 {[%emt 0:00:36]} ({White should play} 9. e3 $14) 9... Nf6 $146 {[%emt 0:05:46]} ({Predecessor:} 9... e5 10. Nd5 Rc8 11. e3 Nf6 12. d4 Nxd5 13. cxd5 Nb4 14. Qd2 Bxg2 15. Kxg2 e4 {0-1 Szamos,A (2144)-Pechac,J (2494) SVK-chT2C 1516 2015 (9.1)}) 10. Nd5 {[%emt 0:01:40]} Bxg2 {[%emt 0:03:24]} 11. Kxg2 {[%emt 0:07:00]} O-O {[%emt 0:01:09]} 12. Nxf6+ {[%emt 0:00:49]} Bxf6 {[%emt 0:01:36]} 13. Bxf6 {[%emt 0:00:07]} exf6 {[%emt 0:00:03]} 14. Rad1 {[%emt 0:03:19]} Rfe8 {[%emt 0:04:06]} 15. d4 {[%emt 0:01:35]} Qe7 {[%emt 0:00:08]} 16. e3 {[%emt 0:13:44]} f5 {[%emt 0:00:49]} 17. Rd2 {[%emt 0:06:45]} Nb4 {[%emt 0:06:26]} 18. Qb1 {[%emt 0:03:50]} Rad8 {[%emt 0:01:31]} 19. d5 {[%emt 0:03:44]} Qf6 {[%emt 0:03:16]} 20. a3 {[%emt 0:05:00]} Na6 {[%emt 0:00:07]} 21. Qb2 {[%emt 0:01:51]} Kg7 {[%emt 0:00:55]} 22. Rb1 {[%emt 0:01:36]} (22. Qxf6+ {simplifies} Kxf6 23. h4 h6 24. Rh1) 22... Re4 {[%emt 0:03:57]} 23. Ng5 {[%emt 0:03:12]} Qxb2 {[%emt 0:00:19]} 24. Rdxb2 {[%emt 0:03:00]} Re7 {[%emt 0:00:07]} 25. h4 {[%emt 0:01:07]} h6 {[%emt 0:02:15]} 26. Nf3 {[%emt 0:00:07]} Kf6 {[%emt 0:00:07]} 27. b4 {[%emt 0:03:23]} g5 {[%emt 0:02:12]} 28. hxg5+ {[%emt 0:06:33]} hxg5 {[%emt 0:00:02]} 29. Nd2 {[%emt 0:00:40]} Rc8 {[%emt 0:03:27]} 30. Kf3 {[%emt 0:03:07]} Rh8 {[%emt 0:04:54]} 31. Kg2 {[%emt 0:02:04]} Ree8 {[%emt 0:04:01]} 32. Nb3 {[%emt 0:08:19]} cxb4 {[%emt 0:03:48]} 33. axb4 {[%emt 0:00:01]} Nxb4 {[%emt 0:00:09]} 34. Na5 {[%emt 0:00:04]} Nd3 {[%emt 0:01:16]} (34... b6 35. Nb7 a5 (35... Nd3 36. Ra2 $11) 36. Nxd6) 35. Rxb7 {[%emt 0:00:27]} Rh7 {[%emt 0:03:49]} (35... f4 36. Nc6) 36. Rb8 {[%emt 0:05:58]} (36. Rxa7 $2 Reh8 37. Kf3 g4+ (37... Rh2 $2 38. Rf1 $19) 38. Ke2 Nxf2 $19) 36... Rxb8 {[%emt 0:03:32]} (36... Rhh8 $11 37. Rxe8 Rxe8) 37. Rxb8 $14 {[%emt 0:00:02]} Ne5 {[%emt 0:00:27]} 38. Rd8 $1 {[%emt 0:00:44]} Ke7 {[%emt 0:01:31]} 39. Ra8 {[%emt 0:00:03]} Ng4 $2 {[%emt 0:00:28]} (39... Kf6 $16 {might work better.}) 40. Rxa7+ $2 {[%emt 0:00:39]} (40. Nc6+ $18 {and the rest is easy.} Kf6 41. Rd8 (41. Nxa7 Rh2+ 42. Kg1 Rxf2 $15)) 40... Kf6 $16 {[%emt 0:00:02] [#]} 41. c5 {[%emt 0:03:18]} (41. Kg1 $1 $16 {And now Nb7 would win.} Ne5 (41... Rh2 $2 42. f3 $18) 42. Ra6 Nf3+ 43. Kf1 Nd2+ 44. Ke2) 41... Rh2+ $11 {[%emt 0:03:45]} 42. Kg1 {[%emt 0:03:42]} Rxf2 {[%emt 0:00:20]} 43. c6 {[%emt 0:00:23]} (43. cxd6 $11 Rd2 44. d7 Rd1+ 45. Kg2 Rxd5 46. Nc6 Rd2+ 47. Kg1 Rd1+ 48. Kg2 Rd2+ 49. Kh1 Rd1+ 50. Kg2 Rd2+) 43... Rc2 $1 $17 {[%emt 0:03:40]} 44. Rd7 {[%emt 0:04:54]} (44. Nb7 $17 {was the only defense.}) 44... Rc1+ $19 {[%emt 0:00:50]} ({And not} 44... Nxe3 45. c7 Nxd5 46. Rxd6+ Ke7 47. Rxd5 $14) 45. Kg2 {[%emt 0:00:04]} Nxe3+ {[%emt 0:00:05]} 46. Kf3 $2 {[%emt 0:00:13]} (46. Kf2 Nxd5 47. Rxd6+ Ke5 48. Rd8) 46... Nxd5 $19 {[%emt 0:00:29]} 47. Rxd6+ {[%emt 0:00:10]} Ke5 {[%emt 0:00:01]} 48. Rd8 {[%emt 0:01:27]} g4+ {[%emt 0:01:22]} 49. Ke2 {[%emt 0:00:27]} Rc2+ {[%emt 0:02:38]} 50. Kd3 {[%emt 0:00:46]} (50. Kf1 {is a better defense.}) 50... Nb4+ $19 {[%emt 0:01:30]} 51. Ke3 {[%emt 0:00:02]} Nxc6 {[%emt 0:01:29]} 52. Re8+ {[%emt 0:00:50]} Kf6 {[%emt 0:00:23]} 53. Rc8 {[%emt 0:00:40]} Nd4 {[%emt 0:00:58]} 54. Nc4 {[%emt 0:00:07]} Ne6 0-1